fUSD/lending_fUSD_20250612
["ID","MTS","AMOUNT","RATE_DAILY","PERIOD"]
[365470212,1749690640471,-151.0,0.00019178,2]
[365470213,1749690640482,-185.081108,0.00019178,2]
[365470214,1749690640494,-151.0,0.00019178,2]
[365470215,1749690640506,-151.0,0.00019178,2]
[365470216,1749690640518,-151.0,0.00019178,2]
[365470217,1749690640530,-151.0,0.00019178,2]
[365470218,1749690640542,-480.0,0.00019178,2]
[365470219,1749690640554,-151.0,0.00019178,2]
[365470220,1749690640566,-151.0,0.00019178,2]
[365470221,1749690640577,-151.0,0.00019178,2]
[365470222,1749690640589,-151.0,0.00019178,2]
[365470223,1749690640600,-229.259739,0.00019178,2]
[365470224,1749690640613,-229.259739,0.00019178,2]
[365470225,1749690640624,-229.259739,0.00019178,2]
[365470226,1749690640636,-229.259739,0.00019178,2]
[365470227,1749690640649,-1693.713598,0.00019178,2]
[365470228,1749690640661,-978.891234,0.00019178,2]
[365470229,1749690640672,-1546.003888,0.00019178,2]
[365470230,1749690640684,-1546.003888,0.00019178,2]
[365470231,1749690640695,-1546.003888,0.00019178,2]
[365470232,1749690640707,-1546.003888,0.00019178,2]
[365470233,1749690640719,-962.952947,0.00019178,2]
[365470234,1749690640731,-962.952947,0.00019178,2]
[365470235,1749690640742,-962.952947,0.00019178,2]
[365470236,1749690640753,-962.952947,0.00019178,2]
[365470237,1749690640765,-151.074688,0.00019178,2]
[365470238,1749690640777,-480.0,0.00019178,2]
[365470239,1749690640788,-1376.0954,0.00019178,2]
[365470240,1749690640800,-1376.0954,0.00019178,2]
[365470241,1749690640812,-480.0,0.00019178,2]
[365470242,1749690640823,-480.0,0.00019178,2]
[365470243,1749690640836,-1376.0954,0.00019178,2]
[365470244,1749690640847,-1376.0954,0.00019178,2]
[365470245,1749690640859,-151.0,0.00019178,2]
[365470246,1749690640870,-151.0,0.00019178,2]
[365470247,1749690640882,-480.0,0.00019178,2]
[365470248,1749690640893,-602.18,0.00019178,2]
[365470249,1749690640907,-490.0,0.00019178,2]
[365470250,1749690640919,-480.0,0.00019178,2]
[365470251,1749690640930,-490.0,0.00019178,2]
[365470252,1749690640942,-480.0,0.00019178,2]
[365470253,1749690640956,-490.0,0.00019178,2]
[365470254,1749690640968,-480.0,0.00019178,2]
[365470255,1749690640981,-271.74089976,0.00019178,2]
[365470256,1749690640993,-490.0,0.00019178,2]
[365470257,1749690641004,-428.73480194,0.00019178,2]
[365470258,1749690641015,-480.0,0.00019178,2]
[365470259,1749690641029,-480.0,0.00019178,2]
[365470260,1749690641041,-389.24440633,0.00019178,2]
[365470261,1749690641053,-480.0,0.00019178,2]
[365470262,1749690641064,-480.0,0.00019178,2]
[365470263,1749690641076,-490.0,0.00019178,2]
[365470264,1749690641087,-480.0,0.00019178,2]
[365470265,1749690641100,-480.0,0.00019178,2]
[365470266,1749690641112,-480.0,0.00019178,2]
[365470267,1749690641123,-360.0,0.00019178,2]
[365470268,1749690641135,-490.0,0.00019178,2]
[365470269,1749690641148,-480.0,0.00019178,2]
[365470270,1749690641160,-490.0,0.00019178,2]
[365470271,1749690641172,-480.0,0.00019178,2]
[365470272,1749690641184,-490.0,0.00019178,2]
[365470273,1749690641196,-490.0,0.00019178,2]
[365470274,1749690641207,-490.0,0.00019178,2]
[365470275,1749690641220,-480.0,0.00019178,2]
[365470276,1749690641231,-480.0,0.00019178,2]
[365470277,1749690641243,-480.0,0.00019178,2]
[365470278,1749690641255,-480.0,0.00019178,2]
[365470279,1749690641267,-490.0,0.00019178,2]
[365470280,1749690641279,-500.0,0.00019178,2]
[365470281,1749690641291,-480.0,0.00019178,2]
[365470282,1749690641303,-490.0,0.00019178,2]
[365470283,1749690641315,-490.0,0.00019178,2]
[365470284,1749690641326,-480.0,0.00019178,2]
[365470285,1749690641337,-480.0,0.00019178,2]
[365470286,1749690641349,-490.0,0.00019178,2]
[365470287,1749690641361,-350.57209416,0.00019178,2]
[365470288,1749690641373,-480.0,0.00019178,2]
[365470289,1749690641385,-490.0,0.00019178,2]
[365470290,1749690641396,-490.0,0.00019178,2]
[365470291,1749690641408,-490.0,0.00019178,2]
[365470292,1749690641420,-480.0,0.00019178,2]
[365470293,1749690641432,-490.0,0.00019178,2]
[365470294,1749690641444,-490.0,0.00019178,2]
[365470295,1749690641455,-490.0,0.00019178,2]
[365470296,1749690641466,-480.0,0.00019178,2]
[365470297,1749690641478,-490.0,0.00019178,2]
[365470298,1749690641489,-490.0,0.00019178,2]
[365470299,1749690641500,-490.0,0.00019178,2]
[365470300,1749690641513,-490.0,0.00019178,2]
[365470301,1749690641524,-490.0,0.00019178,2]
[365470302,1749690641536,-490.0,0.00019178,2]
[365470303,1749690641548,-241.49744134,0.00019178,2]
[365470304,1749690641561,-560.0,0.00019178,2]
[365470305,1749690641573,-480.0,0.00019178,2]
[365470306,1749690641584,-490.0,0.00019178,2]
[365470307,1749690641597,-480.0,0.00019178,2]
[365470308,1749690641608,-480.0,0.00019178,2]
[365470309,1749690641620,-490.0,0.00019178,2]
[365470310,1749690641631,-480.0,0.00019178,2]
[365470311,1749690641643,-490.0,0.00019178,2]
[365470312,1749690641656,-490.0,0.00019178,2]
[365470313,1749690641668,-996.49,0.00019178,2]
[365470314,1749690641679,-162.024574,0.00019178,2]
[365470315,1749690641691,-480.0,0.00019178,2]
[365470316,1749690641704,-460.0,0.00019178,2]
[365470317,1749690641716,-970.17,0.00019178,2]
[365470318,1749690641727,-289.1656514,0.00019178,2]
[365470319,1749690641739,-490.0,0.00019178,2]
[365470320,1749690641750,-460.0,0.00019178,2]
[365470321,1749690641762,-490.0,0.00019178,2]
[365470322,1749690641774,-490.0,0.00019178,2]
[365470323,1749690641786,-490.0,0.00019178,2]
[365470324,1749690641797,-490.0,0.00019178,2]
[365470325,1749690641810,-575.36401827,0.00019178,2]
[365470326,1749690641821,-638.88,0.00019178,2]
[365470327,1749690641832,-305.57036023,0.00019178,2]
[365470328,1749690641843,-397.30792608,0.00019178,2]
[365470329,1749690641855,-490.0,0.00019178,2]
[365470330,1749690641866,-250.0,0.00019178,2]
[365470331,1749690641878,-490.0,0.00019178,2]
[365470332,1749690641889,-603.33,0.00019178,2]
[365470333,1749690641901,-523.25,0.00019178,2]
[365470334,1749690641912,-480.0,0.00019178,2]
[365470335,1749690641923,-490.0,0.00019178,2]
[365470336,1749690641935,-961.95,0.00019178,2]
[365470337,1749690641946,-490.0,0.00019178,2]
[365470338,1749690641957,-490.0,0.00019178,2]
[365470339,1749690641968,-490.0,0.00019178,2]
[365470340,1749690641980,-383.26622501,0.00019178,2]
[365470341,1749690641992,-490.0,0.00019178,2]
[365470342,1749690642003,-490.0,0.00019178,2]
[365470343,1749690642013,-490.0,0.00019178,2]
[365470344,1749690642026,-490.0,0.00019178,2]
[365470345,1749690642038,-216.82149945,0.00019178,2]
[365470346,1749690642050,-764.71,0.00019178,2]
[365470347,1749690642062,-420.0,0.00019178,2]
[365470348,1749690642073,-770.27,0.00019178,2]
[365470349,1749690642084,-490.0,0.00019178,2]
[365470350,1749690642095,-632.78,0.00019178,2]
[365470351,1749690642108,-490.0,0.00019178,2]
[365470352,1749690642119,-825.3,0.00019178,2]
[365470353,1749690642131,-458.14889036,0.00019178,2]
[365470354,1749690642142,-490.0,0.00019178,2]
[365470355,1749690642154,-490.0,0.00019178,2]
[365470356,1749690642166,-490.0,0.00019178,2]
[365470357,1749690642176,-490.0,0.00019178,2]
[365470358,1749690642188,-440.0,0.00019178,2]
[365470359,1749690642199,-490.0,0.00019178,2]
[365470360,1749690642211,-490.0,0.00019178,2]
[365470361,1749690642222,-490.0,0.00019178,2]
[365470362,1749690642233,-580.87,0.00019178,2]
[365470363,1749690642245,-490.0,0.00019178,2]
[365470364,1749690642256,-460.0,0.00019178,2]
[365470365,1749690642268,-1253.54,0.00019178,2]
[365470366,1749690642279,-490.0,0.00019178,2]
[365470367,1749690642289,-490.0,0.00019178,2]
[365470368,1749690642299,-790.99,0.00019178,2]
[365470369,1749690642309,-490.0,0.00019178,2]
[365470370,1749690642318,-1491.09,0.00019178,2]
[365470371,1749690642327,-151.0,0.00019178,2]
[365470375,1749690642849,-490.0,0.00019178,2]
[365470376,1749690642870,-280.27049128,0.00019178,2]
[365470377,1749690642884,-1006.07,0.00019178,2]
[365470378,1749690642894,-1203.44,0.00019178,2]
[365470379,1749690642904,-1120.01,0.00019178,2]
[365470380,1749690642913,-1373.55,0.00019178,2]
[365470381,1749690642922,-490.0,0.00019178,2]
[365470382,1749690642932,-490.0,0.00019178,2]
[365470383,1749690642943,-715.51,0.00019178,2]
[365470384,1749690642953,-480.0,0.00019178,2]
[365470385,1749690642963,-601.61776919,0.00019178,2]
[365470386,1749690642974,-480.0,0.00019178,2]
[365470387,1749690642983,-480.0,0.00019178,2]
[365470388,1749690642992,-1109.74,0.00019178,2]
[365470389,1749690643002,-1074.76,0.00019178,2]
[365470390,1749690643011,-490.0,0.00019178,2]
[365470391,1749690643022,-2044.08,0.00019178,2]
[365470392,1749690643036,-521.55,0.00019178,2]
[365470393,1749690643046,-481.66839462,0.00019178,2]
[365470394,1749690643055,-903.41,0.00019178,2]
[365470397,1749690643064,-490.0,0.00019178,2]
[365470400,1749690643075,-480.0,0.00019178,2]
[365470403,1749690643084,-490.0,0.00019178,2]
[365470406,1749690643093,-725.26,0.00019178,2]
[365470407,1749690643103,-490.0,0.00019178,2]
[365470408,1749690643112,-490.0,0.00019178,2]
[365470409,1749690643123,-1190.05,0.00019178,2]
[365470410,1749690643132,-490.0,0.00019178,2]
[365470411,1749690643142,-1012.35,0.00019178,2]
[365470412,1749690643151,-480.0,0.00019178,2]
[365470413,1749690643160,-490.0,0.00019178,2]
[365470414,1749690643170,-470.0,0.00019178,2]
[365470416,1749690643179,-490.0,0.00019178,2]
[365470418,1749690643192,-936.74,0.00019178,2]
[365470419,1749690643201,-490.0,0.00019178,2]
[365470420,1749690643211,-490.0,0.00019178,2]
[365470421,1749690643220,-490.0,0.00019178,2]
[365470422,1749690643229,-1258.79,0.00019178,2]
[365470423,1749690643239,-490.0,0.00019178,2]
[365470424,1749690643248,-490.0,0.00019178,2]
[365470425,1749690643258,-312.63755873,0.00019178,2]
[365470426,1749690643267,-490.0,0.00019178,2]
[365470427,1749690643276,-234.39372068,0.00019178,2]
[365470428,1749690643285,-470.0,0.00019178,2]
[365470429,1749690643295,-480.0,0.00019178,2]
[365470430,1749690643305,-490.0,0.00019178,2]
[365470431,1749690643314,-490.0,0.00019178,2]
[365470432,1749690643324,-388.48566586,0.00019178,2]
[365470433,1749690643334,-480.0,0.00019178,2]
[365470434,1749690643344,-480.0,0.00019178,2]
[365470435,1749690643353,-679.09,0.00019178,2]
[365470436,1749690643363,-480.0,0.00019178,2]
[365470437,1749690643372,-490.0,0.00019178,2]
[365470438,1749690643381,-992.2,0.00019178,2]
[365470439,1749690643390,-574.15,0.00019178,2]
[365470440,1749690643400,-490.0,0.00019178,2]
[365470441,1749690643410,-480.0,0.00019178,2]
[365470442,1749690643419,-490.0,0.00019178,2]
[365470443,1749690643428,-490.0,0.00019178,2]
[365470444,1749690643438,-588.91,0.00019178,2]
[365470445,1749690643447,-490.0,0.00019178,2]
[365470446,1749690643457,-1603.12,0.00019178,2]
[365470447,1749690643470,-885.98,0.00019178,2]
[365470448,1749690643479,-490.0,0.00019178,2]
[365470449,1749690643488,-490.0,0.00019178,2]
[365470450,1749690643497,-490.0,0.00019178,2]
[365470451,1749690643507,-638.48555047,0.00019178,2]
[365470452,1749690643516,-1518.36,0.00019178,2]
[365470453,1749690643527,-490.0,0.00019178,2]
[365470454,1749690643538,-490.0,0.00019178,2]
[365470455,1749690643548,-699.5,0.00019178,2]
[365470456,1749690643558,-490.0,0.00019178,2]
[365470457,1749690643567,-1446.8,0.00019178,2]
[365470458,1749690643577,-490.0,0.00019178,2]
[365470459,1749690643587,-490.0,0.00019178,2]
[365470460,1749690643597,-533.84,0.00019178,2]
[365470461,1749690643606,-839.21,0.00019178,2]
[365470462,1749690643616,-1146.28,0.00019178,2]
[365470463,1749690643625,-1337.46,0.00019178,2]
[365470464,1749690643635,-490.0,0.00019178,2]
[365470465,1749690643644,-490.0,0.00019178,2]
[365470466,1749690643655,-490.0,0.00019178,2]
[365470467,1749690643665,-640.88,0.00019178,2]
[365470468,1749690643674,-1236.08,0.00019178,2]
[365470469,1749690643683,-480.0,0.00019178,2]
[365470470,1749690643693,-490.0,0.00019178,2]
[365470471,1749690643705,-707.65,0.00019178,2]
[365470472,1749690643715,-1512.18,0.00019178,2]
[365470473,1749690643725,-769.33,0.00019178,2]
[365470474,1749690643734,-490.0,0.00019178,2]
[365470475,1749690643743,-490.0,0.00019178,2]
[365470476,1749690643753,-728.53,0.00019178,2]
[365470477,1749690643762,-480.0,0.00019178,2]
[365470478,1749690643771,-490.0,0.00019178,2]
[365470479,1749690643780,-884.72,0.00019178,2]
[365470480,1749690643790,-480.0,0.00019178,2]
[365470481,1749690643799,-629.48,0.00019178,2]
[365470482,1749690643809,-490.0,0.00019178,2]
[365470483,1749690643818,-727.82,0.00019178,2]
[365470484,1749690643828,-480.0,0.00019178,2]
[365470485,1749690643837,-470.0,0.00019178,2]
[365470486,1749690643846,-561.45,0.00019178,2]
[365470487,1749690643856,-2528.79,0.00019178,2]
[365470488,1749690643865,-874.82,0.00019178,2]
[365470489,1749690643874,-1226.39,0.00019178,2]
[365470490,1749690643884,-490.0,0.00019178,2]
[365470491,1749690643893,-490.0,0.00019178,2]
[365470492,1749690643902,-490.0,0.00019178,2]
[365470493,1749690643912,-1199.51,0.00019178,2]
[365470494,1749690643921,-490.0,0.00019178,2]
[365470495,1749690643931,-490.0,0.00019178,2]
[365470496,1749690643941,-490.0,0.00019178,2]
[365470497,1749690643950,-797.47,0.00019178,2]
[365470498,1749690643959,-480.0,0.00019178,2]
[365470499,1749690643968,-490.0,0.00019178,2]
[365470500,1749690643978,-490.0,0.00019178,2]
[365470501,1749690643987,-480.0,0.00019178,2]
[365470502,1749690643996,-490.0,0.00019178,2]
[365470503,1749690644005,-1062.41,0.00019178,2]
[365470504,1749690644015,-1042.68,0.00019178,2]
[365470505,1749690644024,-490.0,0.00019178,2]
[365470506,1749690644036,-490.0,0.00019178,2]
[365470507,1749690644046,-1152.21,0.00019178,2]
[365470508,1749690644055,-612.81,0.00019178,2]
[365470509,1749690644064,-1145.06,0.00019178,2]
[365470510,1749690644074,-1000.0,0.00019178,2]
[365470511,1749690644084,-796.38,0.00019178,2]
[365470512,1749690644093,-490.0,0.00019178,2]
[365470513,1749690644104,-490.0,0.00019178,2]
[365470514,1749690644114,-1035.79,0.00019178,2]
[365470515,1749690644125,-553.95,0.00019178,2]
[365470516,1749690644134,-974.29,0.00019178,2]
[365470517,1749690644144,-480.0,0.00019178,2]
[365470518,1749690644154,-160.45103809,0.00019178,2]
[365470519,1749690644164,-490.0,0.00019178,2]
[365470520,1749690644173,-164.63189952,0.00019178,2]
[365470521,1749690644183,-314.48793835,0.00019178,2]
[365470522,1749690644193,-490.0,0.00019178,2]
[365470523,1749690644203,-2549.34,0.00019178,2]
[365470524,1749690644213,-1162.29,0.00019178,2]
[365470525,1749690644222,-480.0,0.00019178,2]
[365470526,1749690644232,-1272.41,0.00019178,2]
[365470527,1749690644241,-4864.33,0.00019178,2]
[365470528,1749690644251,-490.0,0.00019178,2]
[365470529,1749690644261,-701.83,0.00019178,2]
[365470530,1749690644271,-1579.6,0.00019178,2]
[365470531,1749690644281,-821.19,0.00019178,2]
[365470532,1749690644300,-480.0,0.00019178,2]
[365470533,1749690644312,-10351.2,0.00019178,2]
[365470534,1749690644322,-490.0,0.00019178,2]
[365470535,1749690644331,-3559.58,0.00019178,2]
[365470536,1749690644341,-490.0,0.00019178,2]
[365470537,1749690644351,-1082.57,0.00019178,2]
[365470538,1749690644361,-490.0,0.00019178,2]
[365470539,1749690644370,-594.49227987,0.00019178,2]
[365470540,1749690644380,-644.21,0.00019178,2]
[365470541,1749690644390,-2452.21,0.00019178,2]
[365470542,1749690644399,-480.0,0.00019178,2]
[365470543,1749690644409,-490.0,0.00019178,2]
[365470544,1749690644420,-490.0,0.00019178,2]
[365470545,1749690644430,-480.0,0.00019178,2]
[365470546,1749690644442,-480.0,0.00019178,2]
[365470547,1749690644454,-1060.53,0.00019178,2]
[365470548,1749690644464,-490.0,0.00019178,2]
[365470549,1749690644474,-815.2,0.00019178,2]
[365470550,1749690644484,-945.69,0.00019178,2]
[365470551,1749690644493,-2938.45,0.00019178,2]
[365470552,1749690644503,-490.0,0.00019178,2]
[365470553,1749690644513,-1092.11,0.00019178,2]
[365470554,1749690644523,-490.0,0.00019178,2]
[365470555,1749690644533,-924.83,0.00019178,2]
[365470556,1749690644542,-480.0,0.00019178,2]
[365470557,1749690644552,-1136.45,0.00019178,2]
[365470558,1749690644562,-490.0,0.00019178,2]
[365470559,1749690644571,-1082.45,0.00019178,2]
[365470560,1749690644581,-490.0,0.00019178,2]
[365470561,1749690644591,-1603.19,0.00019178,2]
[365470562,1749690644601,-1042.71,0.00019178,2]
[365470563,1749690644610,-480.0,0.00019178,2]
[365470564,1749690644620,-490.0,0.00019178,2]
[365470565,1749690644631,-490.0,0.00019178,2]
[365470566,1749690644641,-490.0,0.00019178,2]
[365470567,1749690644651,-1110.17,0.00019178,2]
[365470568,1749690644660,-2126.2,0.00019178,2]
[365470569,1749690644670,-490.0,0.00019178,2]
[365470570,1749690644680,-3798.35,0.00019178,2]
[365470571,1749690644690,-672.51,0.00019178,2]
[365470572,1749690644700,-490.0,0.00019178,2]
[365470573,1749690644709,-490.0,0.00019178,2]
[365470574,1749690644719,-490.0,0.00019178,2]
[365470575,1749690644729,-1189.5,0.00019178,2]
[365470576,1749690644739,-2283.0,0.00019178,2]
[365470577,1749690644748,-480.0,0.00019178,2]
[365470578,1749690644758,-10000.0,0.00019178,2]
[365470579,1749690644769,-490.0,0.00019178,2]
[365470580,1749690644779,-10000.0,0.00019178,2]
[365470581,1749690644788,-1504.37,0.00019178,2]
[365470582,1749690644798,-480.0,0.00019178,2]
[365470583,1749690644808,-480.0,0.00019178,2]
[365470584,1749690644818,-773.53,0.00019178,2]
[365470585,1749690644829,-1303.54,0.00019178,2]
[365470586,1749690644839,-490.0,0.00019178,2]
[365470587,1749690644860,-5875.15,0.00019178,2]
[365470588,1749690644883,-480.0,0.00019178,2]
[365470589,1749690644909,-480.0,0.00019178,2]
[365470590,1749690644936,-2597.27,0.00019178,2]
[365470591,1749690644960,-490.0,0.00019178,2]
[365470592,1749690644985,-480.0,0.00019178,2]
[365470593,1749690645007,-3780.12,0.00019178,2]
[365470594,1749690645030,-10000.0,0.00019178,2]
[365470595,1749690645051,-1755.12,0.00019178,2]
[365470596,1749690645075,-574.58,0.00019178,2]
[365470597,1749690645098,-480.0,0.00019178,2]
[365470598,1749690645122,-490.0,0.00019178,2]
[365470599,1749690645146,-490.0,0.00019178,2]
[365470600,1749690645160,-2015.54,0.00019178,2]
[365470601,1749690645170,-490.0,0.00019178,2]
[365470602,1749690645180,-1000.0,0.00019178,2]
[365470603,1749690645190,-1082.95,0.00019178,2]
[365470604,1749690645201,-500.0,0.00019178,2]
[365470605,1749690645211,-500.0,0.00019178,2]
[365470606,1749690645221,-500.0,0.00019178,2]
[365470607,1749690645231,-490.0,0.00019178,2]
[365470608,1749690645242,-2672.02,0.00019178,2]
[365470609,1749690645251,-480.0,0.00019178,2]
[365470610,1749690645261,-3899.86,0.00019178,2]
[365470611,1749690645271,-490.0,0.00019178,2]
[365470612,1749690645282,-480.0,0.00019178,2]
[365470613,1749690645291,-490.0,0.00019178,2]
[365470614,1749690645302,-937.65,0.00019178,2]
[365470615,1749690645312,-480.0,0.00019178,2]
[365470616,1749690645322,-2220.4,0.00019178,2]
[365470617,1749690645331,-490.0,0.00019178,2]
[365470618,1749690645341,-2581.92,0.00019178,2]
[365470619,1749690645351,-500.0,0.00019178,2]
[365470620,1749690645361,-500.0,0.00019178,2]
[365470621,1749690645370,-490.0,0.00019178,2]
[365470622,1749690645380,-500.0,0.00019178,2]
[365470623,1749690645390,-1263.42,0.00019178,2]
[365470624,1749690645400,-3602.44,0.00019178,2]
[365470625,1749690645410,-490.0,0.00019178,2]
[365470626,1749690645419,-875.55,0.00019178,2]
[365470627,1749690645429,-500.0,0.00019178,2]
[365470628,1749690645438,-857.46,0.00019178,2]
[365470629,1749690645448,-490.0,0.00019178,2]
[365470630,1749690645457,-203.41534465,0.00019178,2]
[365470631,1749690645467,-490.0,0.00019178,2]
[365470633,1749690645477,-463.53218888,0.00019178,2]
[365470635,1749690645486,-500.0,0.00019178,2]
[365470637,1749690645495,-460.0,0.00019178,2]
[365470638,1749690645505,-619.11,0.00019178,2]
[365470639,1749690645515,-490.0,0.00019178,2]
[365470640,1749690645524,-2140.0,0.00019178,2]
[365470641,1749690645533,-1125.97,0.00019178,2]
[365470642,1749690645543,-1101.34,0.00019178,2]
[365470643,1749690645552,-2904.12,0.00019178,2]
[365470644,1749690645562,-480.0,0.00019178,2]
[365470645,1749690645571,-614.82,0.00019178,2]
[365470646,1749690645581,-2890.1,0.00019178,2]
[365470647,1749690645590,-985.4,0.00019178,2]
[365470648,1749690645600,-500.0,0.00019178,2]
[365470649,1749690645609,-490.0,0.00019178,2]
[365470650,1749690645619,-480.0,0.00019178,2]
[365470651,1749690645628,-680.48,0.00019178,2]
[365470652,1749690645637,-482.2760617,0.00019178,2]
[365470653,1749690645646,-490.0,0.00019178,2]
[365470654,1749690645657,-480.0,0.00019178,2]
[365470655,1749690645666,-894.96,0.00019178,2]
[365470656,1749690645676,-307.64209729,0.00019178,2]
[365470657,1749690645685,-1409.61,0.00019178,2]
[365470658,1749690645698,-500.0,0.00019178,2]
[365470659,1749690645707,-717.09,0.00019178,2]
[365470660,1749690645717,-490.0,0.00019178,2]
[365470661,1749690645727,-1256.89,0.00019178,2]
[365470662,1749690645736,-490.0,0.00019178,2]
[365470663,1749690645746,-150.0,0.00019178,2]
[365470664,1749690645756,-490.0,0.00019178,2]
[365470665,1749690645765,-1587.11,0.00019178,2]
[365470666,1749690645775,-490.0,0.00019178,2]
[365470667,1749690645785,-1081.8,0.00019178,2]
[365470668,1749690645794,-480.0,0.00019178,2]
[365470669,1749690645806,-14301.88,0.00019178,2]
[365470670,1749690645815,-1199.99,0.00019178,2]
[365470671,1749690645825,-480.0,0.00019178,2]
[365470672,1749690645834,-490.0,0.00019178,2]
[365470673,1749690645843,-2185.09,0.00019178,2]
[365470674,1749690645853,-480.0,0.00019178,2]
[365470675,1749690645862,-480.0,0.00019178,2]
[365470676,1749690645871,-1057.43,0.00019178,2]
[365470677,1749690645881,-490.0,0.00019178,2]
[365470678,1749690645891,-900.66,0.00019178,2]
[365470679,1749690645901,-490.0,0.00019178,2]
[365470680,1749690645910,-490.0,0.00019178,2]
[365470681,1749690645919,-208.69335797,0.00019178,2]
[365470682,1749690645929,-480.0,0.00019178,2]
[365470684,1749690645938,-480.0,0.00019178,2]
[365470685,1749690645947,-480.0,0.00019178,2]
[365470686,1749690645957,-1649.82,0.00019178,2]
[365470687,1749690645966,-664.82,0.00019178,2]
[365470688,1749690645976,-2490.33,0.00019178,2]
[365470689,1749690645985,-798.1,0.00019178,2]
[365470691,1749690645995,-1110.06,0.00019178,2]
[365470693,1749690646004,-792.03,0.00019178,2]
[365470695,1749690646015,-494.45403773,0.00019178,2]
[365470697,1749690646026,-2509.61,0.00019178,2]
[365470698,1749690646038,-490.0,0.00019178,2]
[365470699,1749690646047,-490.0,0.00019178,2]
[365470700,1749690646057,-500.0,0.00019178,2]
[365470701,1749690646066,-480.0,0.00019178,2]
[365470702,1749690646077,-720.52,0.00019178,2]
[365470703,1749690646086,-935.4,0.00019178,2]
[365470704,1749690646096,-480.0,0.00019178,2]
[365470705,1749690646106,-490.0,0.00019178,2]
[365470706,1749690646116,-1097.47,0.00019178,2]
[365470707,1749690646126,-1701.54,0.00019178,2]
[365470708,1749690646135,-480.0,0.00019178,2]
[365470709,1749690646145,-490.0,0.00019178,2]
[365470710,1749690646155,-490.0,0.00019178,2]
[365470712,1749690646165,-480.0,0.00019178,2]
[365470739,1749690646413,-151.0,0.00019178,2]
[365470741,1749690646423,-287.31890053,0.00019178,2]
[365470743,1749690646432,-490.0,0.00019178,2]
[365470745,1749690646442,-480.0,0.00019178,2]
[365470747,1749690646450,-490.0,0.00019178,2]
[365470749,1749690646460,-1526.96,0.00019178,2]
[365470751,1749690646469,-480.0,0.00019178,2]
[365470753,1749690646478,-490.0,0.00019178,2]
[365470755,1749690646487,-151.0,0.00019178,2]
[365470757,1749690646496,-490.0,0.00019178,2]
[365470759,1749690646505,-1365.92,0.00019178,2]
[365470761,1749690646514,-527.97,0.00019178,2]
[365470763,1749690646523,-4102.41,0.00019178,2]
[365470765,1749690646532,-490.0,0.00019178,2]
[365470767,1749690646542,-206.28072487,0.00019178,2]
[365470768,1749690646550,-490.0,0.00019178,2]
[365470769,1749690646559,-1528.37,0.00019178,2]
[365470770,1749690646568,-582.95,0.00019178,2]
[365470771,1749690646577,-480.0,0.00019178,2]
[365470772,1749690646586,-200.0,0.00019178,2]
[365470773,1749690646595,-490.0,0.00019178,2]